bitfinex/quotes_BTCUSD_20220731
["timestamp","ask_amount","ask_price","bid_price","bid_amount"]
[1659245607506,0.0428384,23754.0,23750.0,0.758545]
[1659245607736,0.65838306,23755.0,23751.0,0.03104744]
[1659245608232,0.55,23752.0,23751.0,0.0071616]
[1659245608452,0.55,23752.0,23749.0,0.210457]
[1659245608453,0.53943533,23752.0,23749.0,0.210457]
[1659245608673,0.40725733,23752.0,23749.0,0.210457]
[1659245608889,0.48625733,23752.0,23749.0,0.210457]
[1659245609140,0.079,23752.0,23749.0,0.210457]
[1659245609389,0.079,23752.0,23750.0,0.304217]
[1659245609624,0.079,23752.0,23750.0,0.03104744]
[1659245610082,0.304217,23751.0,23750.0,0.03104744]
[1659245610300,0.4675,23755.0,23750.0,0.03104744]
[1659245610571,0.87475733,23755.0,23750.0,0.03104744]
[1659245611019,0.95375733,23755.0,23750.0,0.33104744]
[1659245611901,0.95375733,23755.0,23751.0,0.210437]
[1659245612362,0.87475733,23755.0,23751.0,0.210437]
[1659245612609,0.00362573,23754.0,23751.0,0.210437]
[1659245613300,0.2465,23755.0,23751.0,0.210437]
[1659245613747,0.2465,23755.0,23751.0,0.310437]
[1659245613976,0.2465,23755.0,23752.0,0.3]
[1659245614194,0.1675,23755.0,23753.0,0.03104744]
[1659245614434,0.1675,23755.0,23753.0,0.24147144]
[1659245614864,0.25112573,23755.0,23753.0,0.210424]
[1659245615101,0.25112573,23755.0,23753.0,0.2175856]
[1659245615322,0.25102055,23755.0,23753.0,0.2175856]
[1659245615614,0.25102055,23755.0,23753.0,0.210424]
[1659245615788,0.24739482,23755.0,23753.0,0.24147144]
[1659245616267,0.17102055,23755.0,23753.0,0.210424]
[1659245616928,0.25102055,23755.0,23753.0,0.210424]
[1659245617146,0.25102055,23755.0,23753.0,0.2175856]
[1659245617616,0.25102055,23755.0,23753.0,0.24863304]
[1659245617617,0.24739482,23755.0,23753.0,0.24863304]
[1659245617844,0.25102055,23755.0,23753.0,0.2175856]
[1659245618274,0.57827788,23755.0,23750.0,0.210448]
[1659245618504,0.57827788,23755.0,23750.0,0.560448]
[1659245618767,0.57827788,23755.0,23750.0,0.510448]
[1659245618981,0.65827788,23755.0,23750.0,0.560448]
[1659245619210,0.65827788,23755.0,23750.0,0.610448]
[1659245619675,0.65827788,23755.0,23750.0,1.031314]
[1659245620335,0.57827788,23755.0,23750.0,1.031314]
[1659245621070,0.65727788,23755.0,23750.0,1.031314]
[1659245621517,0.65727788,23755.0,23750.0,0.981314]
[1659245621730,0.65727788,23755.0,23750.0,1.031314]
[1659245622183,0.57827788,23755.0,23750.0,0.981314]
[1659245623166,0.57827788,23755.0,23750.0,1.031314]
[1659245624038,0.57827788,23755.0,23750.0,0.981314]
[1659245625621,0.87827788,23755.0,23750.0,0.981314]
[1659245625858,0.62627788,23755.0,23750.0,0.981314]
[1659245627203,0.62627788,23755.0,23750.0,1.031314]
[1659245627416,0.62265215,23755.0,23750.0,1.32154346]
[1659245627636,0.62265215,23755.0,23750.0,1.31154346]
[1659245627864,0.67065215,23755.0,23750.0,1.31154346]
[1659245628307,0.67065215,23755.0,23750.0,1.27154346]
[1659245628745,0.57465215,23755.0,23750.0,1.27154346]
[1659245629991,0.57465215,23755.0,23750.0,0.981314]
[1659245630202,0.57465215,23755.0,23750.0,0.931314]
[1659245630417,0.62265215,23755.0,23750.0,0.981314]
[1659245630870,0.62265215,23755.0,23750.0,0.210448]
[1659245631124,0.604217,23754.0,23750.0,0.210448]
[1659245631354,0.00362573,23753.0,23750.0,0.210448]
[1659245631807,0.57465215,23755.0,23750.0,0.24149544]
[1659245632032,0.056,23754.0,23750.0,0.24149544]
[1659245632249,0.056,23754.0,23750.0,0.29149544]
[1659245632435,0.056,23754.0,23750.0,0.260448]
[1659245632684,0.00362573,23753.0,23750.0,0.260448]
[1659245632917,0.056,23754.0,23750.0,0.510448]
[1659245633371,0.57465215,23755.0,23750.0,0.560448]
[1659245634039,0.056,23754.0,23750.0,0.560448]
[1659245634279,0.056,23754.0,23751.0,0.03120566]
[1659245634507,0.05962573,23754.0,23751.0,0.03836726]
[1659245634979,0.056,23754.0,23751.0,0.03836726]
[1659245635190,0.57465215,23755.0,23751.0,0.03836726]
[1659245636082,0.62265215,23755.0,23751.0,0.03836726]
[1659245636362,0.61901196,23755.0,23751.0,0.03836726]
[1659245636582,0.61901196,23755.0,23751.0,0.0571616]
[1659245636797,0.61901196,23755.0,23752.0,0.03120566]
[1659245637488,0.61901196,23755.0,23753.0,0.514633]
[1659245637489,0.16375463,23755.0,23753.0,0.514633]
[1659245637731,0.16375463,23755.0,23754.0,0.7113786]
[1659245637990,0.24275463,23755.0,23754.0,0.8779246]
[1659245638225,0.24275463,23755.0,23754.0,1.1821416]
[1659245639113,0.24275463,23755.0,23754.0,0.420763]
[1659245639346,0.16375463,23755.0,23751.0,0.420838]
[1659245639575,0.16375463,23755.0,23752.0,0.304217]
[1659245639798,0.16375463,23755.0,23752.0,0.21043]
[1659245640056,0.24275463,23755.0,23753.0,0.304217]
[1659245640299,0.24275463,23755.0,23753.0,0.0071616]
[1659245640511,0.65001196,23755.0,23752.0,0.21043]
[1659245640745,1.01147433,23754.0,23749.0,1.0]
[1659245640971,0.70725733,23754.0,23749.0,1.0]
[1659245641652,0.40725733,23754.0,23749.0,1.0]
[1659245641889,0.48525733,23754.0,23749.0,1.0071616]
[1659245642127,0.40725733,23753.0,23749.0,1.0071616]
[1659245642345,0.40725733,23753.0,23750.0,0.33104744]
[1659245642566,0.41088306,23753.0,23750.0,0.03820904]
[1659245643237,0.40725733,23753.0,23750.0,0.24149544]
[1659245643462,0.40725733,23753.0,23750.0,0.54865704]
[1659245643957,0.48525733,23753.0,23750.0,0.54865704]
[1659245644192,0.48525733,23753.0,23750.0,0.24865704]
[1659245644407,0.48888306,23753.0,23751.0,0.05]
[1659245644860,0.48888306,23753.0,23750.0,0.210448]
[1659245645097,0.48888306,23753.0,23751.0,0.05]
[1659245645319,0.40725733,23753.0,23750.0,0.24149544]
[1659245645573,0.41088306,23753.0,23750.0,0.24865704]
[1659245645794,0.41088306,23753.0,23750.0,0.24149544]
[1659245646011,0.44888306,23753.0,23750.0,0.24149544]
[1659245646229,0.44888306,23753.0,23750.0,0.54865704]
[1659245646458,0.44888306,23753.0,23750.0,0.510448]
[1659245646921,0.44525733,23753.0,23750.0,0.54886931]
[1659245647310,0.40725733,23753.0,23750.0,0.54886931]
[1659245647536,0.40725733,23753.0,23750.0,0.54170771]
[1659245647974,0.48625733,23753.0,23750.0,0.54170771]
[1659245648973,0.48625733,23753.0,23751.0,0.05]
[1659245649188,0.48625733,23753.0,23750.0,0.2176096]
[1659245649626,0.48625733,23753.0,23751.0,0.0812597]
[1659245649844,0.48625733,23753.0,23750.0,0.2176096]
[1659245650265,0.48625733,23753.0,23751.0,0.05]
[1659245650482,0.48988306,23753.0,23751.0,0.05]
[1659245650694,0.48988306,23753.0,23750.0,0.210448]
[1659245650898,0.48988306,23753.0,23750.0,0.24234193]
[1659245651404,0.40725733,23753.0,23750.0,0.24234193]
[1659245651617,0.40725733,23753.0,23750.0,0.24950353]
[1659245651839,0.41088306,23753.0,23750.0,0.24950353]
[1659245652062,0.48988306,23753.0,23750.0,0.24950353]
[1659245652710,0.48625733,23753.0,23750.0,0.210448]
[1659245652944,0.48625733,23753.0,23751.0,0.33611091]
[1659245653156,0.48625733,23753.0,23751.0,0.03189391]
[1659245653371,0.40725733,23753.0,23751.0,0.03189391]
[1659245654011,0.00362573,23752.0,23750.0,0.210448]
[1659245654224,0.48625733,23753.0,23751.0,0.03189391]
[1659245654443,0.48625733,23753.0,23750.0,0.210448]
[1659245655342,0.48625733,23753.0,23751.0,0.03189391]
[1659245655556,0.48625733,23753.0,23750.0,0.210448]
[1659245655796,0.40725733,23753.0,23750.0,0.210448]
[1659245656027,0.48625733,23753.0,23750.0,0.210448]
[1659245657353,0.40725733,23753.0,23750.0,0.210448]
[1659245657996,0.48625733,23753.0,23750.0,0.210448]
[1659245658643,0.48625733,23753.0,23751.0,0.03104744]
[1659245659375,0.40725733,23753.0,23751.0,0.03104744]
[1659245659614,0.41088306,23753.0,23750.0,0.210448]
[1659245659817,0.41088306,23753.0,23750.0,0.24149544]
[1659245660036,0.48625733,23753.0,23750.0,0.24149544]
[1659245660252,0.48625733,23753.0,23750.0,0.210448]
[1659245660732,0.48988306,23753.0,23750.0,0.210448]
[1659245661222,0.41088306,23753.0,23751.0,0.03104744]
[1659245661685,0.40725733,23753.0,23750.0,0.210448]
[1659245662127,0.40725733,23753.0,23751.0,0.03104744]
[1659245662792,0.40725733,23753.0,23750.0,0.210448]
[1659245663261,0.48625733,23753.0,23750.0,0.210448]
[1659245663943,0.56525733,23753.0,23750.0,0.210448]
[1659245664371,0.56525733,23753.0,23751.0,0.03104744]
[1659245664626,0.40725733,23753.0,23751.0,0.03104744]
[1659245665074,0.40725733,23753.0,23750.0,0.210448]
[1659245665520,0.41088306,23753.0,23750.0,0.210448]
[1659245665743,0.40725733,23753.0,23750.0,0.210448]
[1659245665971,0.48625733,23753.0,23750.0,0.210448]
[1659245666667,0.48625733,23753.0,23751.0,0.03104744]
[1659245666969,0.48988306,23753.0,23751.0,0.03104744]
[1659245667190,0.40725733,23753.0,23750.0,0.210448]
[1659245667658,0.40725733,23753.0,23751.0,0.03104744]
[1659245667879,0.48625733,23753.0,23750.0,0.210448]
[1659245668104,0.48988306,23753.0,23750.0,0.210448]
[1659245668819,0.48625733,23753.0,23751.0,0.03104744]
[1659245669265,0.40725733,23753.0,23751.0,0.03104744]
[1659245669958,0.48625733,23753.0,23751.0,0.03104744]
[1659245670695,0.48988306,23753.0,23751.0,0.03104744]
[1659245670916,0.48625733,23753.0,23750.0,0.210448]
[1659245671141,0.48625733,23753.0,23751.0,0.304217]
[1659245671362,0.40725733,23753.0,23750.0,0.210448]
[1659245672019,0.00056623,23752.0,23751.0,0.304217]
[1659245672242,0.48523749,23753.0,23750.0,0.210448]
[1659245673785,0.40623749,23753.0,23750.0,0.210448]
[1659245674519,0.00056622,23752.0,23750.0,0.210448]
[1659245674671,0.40623749,23753.0,23750.0,0.210448]
[1659245675317,0.48523749,23753.0,23750.0,0.210448]
[1659245675746,0.48523749,23753.0,23751.0,0.03410693]
[1659245675981,0.48523749,23753.0,23750.0,0.210448]
[1659245676441,0.56423749,23753.0,23750.0,0.210448]
[1659245676658,0.40623749,23753.0,23751.0,0.03410693]
[1659245678040,0.48523749,23753.0,23751.0,0.03410693]
[1659245678296,0.48580371,23753.0,23751.0,0.03410693]
[1659245678521,0.48580371,23753.0,23750.0,0.210448]
[1659245678968,0.48523749,23753.0,23752.0,0.210437]
[1659245679203,0.40623749,23753.0,23752.0,0.210437]
[1659245682199,0.40623749,23753.0,23752.0,0.0467146]
[1659245683390,0.40623749,23753.0,23750.0,0.63133]
[1659245685191,0.40623749,23753.0,23750.0,0.210456]
[1659245685409,0.304217,23752.0,23750.0,0.210456]
[1659245685634,0.40164282,23753.0,23750.0,0.210456]
[1659245685863,0.48064282,23753.0,23751.0,0.00024397]
[1659245686138,0.47641108,23753.0,23750.0,0.210456]
[1659245686365,0.55641108,23753.0,23750.0,0.210456]
[1659245686599,0.55641108,23753.0,23750.0,0.21036511]
[1659245687039,0.39741108,23753.0,23750.0,0.21036511]
[1659245687957,0.47741108,23753.0,23750.0,0.21036511]
[1659245689329,0.39741108,23753.0,23750.0,0.21036511]
[1659245689539,0.40273334,23753.0,23750.0,0.21036511]
[1659245690018,0.40273334,23753.0,23749.0,1.0]
[1659245690019,0.304217,23752.0,23749.0,1.0]
[1659245690236,0.132178,23751.0,23749.0,1.0]
[1659245690469,0.47741108,23753.0,23749.0,1.03353566]
[1659245690698,0.00556623,23752.0,23749.0,1.03353566]
[1659245690926,0.00556623,23752.0,23749.0,1.0]
[1659245691358,0.304217,23751.0,23749.0,1.0]
[1659245693198,0.00556623,23752.0,23749.0,1.0]
[1659245693411,0.304217,23751.0,23749.0,1.0293509]
[1659245693624,0.00556623,23752.0,23749.0,1.0293509]
[1659245693877,0.08556623,23752.0,23749.0,1.0293509]
[1659245694105,0.304217,23751.0,23749.0,1.0]
[1659245694338,0.08556623,23752.0,23749.0,1.0]
[1659245694787,0.304217,23751.0,23749.0,1.0]
[1659245695010,0.08556623,23752.0,23749.0,1.0293509]
[1659245695229,0.08556623,23752.0,23749.0,1.0]
[1659245695230,0.304217,23751.0,23749.0,1.0]
[1659245695458,0.08556623,23752.0,23749.0,1.0]
[1659245695916,0.384217,23751.0,23749.0,1.0]
[1659245696127,0.08,23751.0,23749.0,1.0]
[1659245696595,1.50725733,23750.0,23749.0,1.0]
[1659245696822,1.89399841,23750.0,23749.0,1.0]
[1659245697059,1.89399841,23750.0,23749.0,1.00372429]
[1659245697282,1.89399841,23750.0,23743.0,0.2106708]
[1659245697283,0.3,23749.0,23743.0,0.0001538]
[1659245697518,0.3,23749.0,23739.0,0.210551]
[1659245697519,0.85,23744.0,23739.0,0.210551]
[1659245697816,0.45,23747.0,23736.0,0.631685]
[1659245697817,0.05,23740.0,23736.0,0.631685]
[1659245698242,0.05,23740.0,23737.0,0.304217]
[1659245698460,0.40725733,23740.0,23736.0,0.21057]
[1659245699385,0.00556623,23739.0,23736.0,0.21057]
[1659245699646,0.00556623,23739.0,23737.0,0.304217]
[1659245699869,0.00556623,23739.0,23736.0,0.21057]
[1659245700327,0.00556623,23739.0,23736.0,0.2399209]
[1659245700550,0.00556623,23739.0,23737.0,0.304217]
[1659245700781,0.00556623,23739.0,23736.0,0.2399209]
[1659245701250,0.45525733,23740.0,23736.0,0.2399209]
[1659245701506,0.40725733,23740.0,23736.0,0.2399209]
[1659245701726,0.40725733,23740.0,23736.0,0.6610389]
[1659245701945,0.45525733,23740.0,23736.0,0.6610389]
[1659245702191,0.45525733,23740.0,23737.0,0.30466985]
[1659245702192,0.048,23740.0,23737.0,0.30466985]
[1659245702418,0.048,23740.0,23738.0,0.304217]
[1659245702643,0.048,23740.0,23739.0,0.304217]
[1659245702871,0.048,23740.0,23738.0,0.210548]
[1659245703308,0.3,23744.0,23738.0,0.210548]
[1659245703577,0.71147433,23743.0,23738.0,0.210548]
[1659245703792,0.40725733,23743.0,23738.0,0.210548]
[1659245705900,0.44625733,23743.0,23738.0,0.210548]
[1659245706118,0.40725733,23742.0,23738.0,0.210548]
[1659245706352,0.30978323,23741.0,23738.0,0.210548]
[1659245706568,0.05,23739.0,23734.0,0.97787594]
[1659245706808,0.40725733,23739.0,23736.0,0.210573]
[1659245707258,0.00556623,23738.0,23736.0,0.210573]
[1659245707745,0.40725733,23739.0,23736.0,0.2399239]
[1659245708007,0.40725733,23739.0,23736.0,0.6610359]
[1659245708241,0.40725733,23741.0,23737.0,0.304217]
[1659245708455,0.3,23742.0,23738.0,0.210548]
[1659245708456,0.40725733,23742.0,23738.0,0.210548]
[1659245708686,0.40725733,23742.0,23739.0,0.0293509]
[1659245708910,0.00556623,23741.0,23740.0,0.210527]
[1659245709138,0.40725733,23742.0,23740.0,0.210527]
[1659245709376,0.3,23744.0,23741.0,0.05505572]
[1659245709601,0.70725733,23744.0,23741.0,0.05505572]
[1659245709840,0.70725733,23744.0,23741.0,0.26558172]
[1659245710080,0.036,23742.0,23741.0,0.26558172]
[1659245711018,0.04156623,23742.0,23741.0,0.26558172]
[1659245711286,0.00556623,23742.0,23741.0,0.26558172]
[1659245711720,0.40725733,23744.0,23741.0,0.26558172]
[1659245711917,0.037,23742.0,23741.0,0.26558172]
[1659245713394,0.00556623,23743.0,23741.0,0.26558172]
[1659245713624,0.40725733,23744.0,23741.0,0.67083272]
[1659245713850,0.65311,23751.0,23742.0,0.85760023]
[1659245714088,0.65311,23751.0,23744.0,0.105234]
[1659245714089,0.40725733,23750.0,23744.0,0.105234]
[1659245714319,1.02875733,23751.0,23746.0,0.210473]
[1659245714541,0.304217,23750.0,23746.0,0.210473]
[1659245714765,0.3,23750.0,23748.0,0.05505572]
[1659245715008,0.304217,23749.0,23748.0,0.05505572]
[1659245715899,0.363217,23749.0,23748.0,0.05505572]
[1659245716473,0.77047433,23749.0,23748.0,0.05505572]
[1659245717061,0.77579659,23749.0,23748.0,0.05505572]
[1659245717284,0.77604056,23749.0,23748.0,0.05505572]
[1659245717923,0.85400355,23749.0,23748.0,0.05505572]
[1659245720028,0.93300355,23749.0,23748.0,0.05505572]
[1659245720456,0.71600355,23749.0,23748.0,0.05505572]
[1659245721315,0.71043732,23749.0,23748.0,0.05505572]
[1659245721993,0.78943732,23749.0,23748.0,0.05505572]
[1659245723351,0.71043732,23749.0,23748.0,0.05505572]
[1659245723988,0.78943732,23749.0,23748.0,0.05505572]
[1659245725132,0.79500355,23749.0,23748.0,0.05505572]
[1659245725335,0.71043732,23749.0,23748.0,0.05505572]
[1659245726002,0.78943732,23749.0,23748.0,0.05505572]
[1659245726211,0.79475958,23749.0,23748.0,0.05505572]
[1659245726424,0.79500355,23749.0,23748.0,0.05505572]
[1659245727306,0.71600355,23749.0,23748.0,0.05505572]
[1659245727934,0.79500355,23749.0,23748.0,0.05505572]
[1659245729267,0.71600355,23749.0,23748.0,0.05505572]
[1659245730358,0.77500355,23749.0,23748.0,0.05505572]
[1659245731694,0.71600355,23749.0,23748.0,0.05505572]
[1659245731924,0.3,23753.0,23748.0,0.05505572]
[1659245732151,0.71132433,23752.0,23748.0,0.05505572]
[1659245732409,0.059,23749.0,23748.0,0.05505572]
[1659245732621,0.059,23749.0,23747.0,0.0293509]
[1659245732834,0.059,23749.0,23746.0,0.210476]
[1659245733051,0.059,23749.0,23746.0,0.2398269]
[1659245734002,0.095,23749.0,23746.0,0.2398269]
[1659245734237,0.095,23749.0,23746.0,0.210476]
[1659245734489,0.40725733,23751.0,23746.0,0.210476]
[1659245735908,0.44325733,23751.0,23746.0,0.210476]
[1659245736102,0.71132433,23750.0,23746.0,0.210476]
[1659245736248,0.131314,23749.0,23747.0,0.0293509]
[1659245736488,0.40725733,23750.0,23746.0,0.210476]
[1659245737128,0.036,23751.0,23746.0,0.260476]
[1659245737346,0.242067,23757.0,23746.0,0.260476]
[1659245737347,1.58181678,23758.0,23750.0,0.07004896]
[1659245737601,1.58181678,23758.0,23752.0,0.631176]
[1659245737602,0.40725733,23757.0,23752.0,0.631176]
[1659245737852,0.304067,23756.0,23752.0,0.631176]
[1659245738094,0.40725733,23757.0,23752.0,0.631176]
[1659245738095,0.00556623,23755.0,23752.0,0.631176]
[1659245738348,0.304067,23754.0,23752.0,0.631176]
[1659245738562,0.70725733,23757.0,23752.0,0.626176]
[1659245739247,0.304067,23756.0,23752.0,0.626176]
[1659245739494,0.70725733,23757.0,23752.0,0.626176]
[1659245739495,0.00532226,23755.0,23752.0,0.626176]
[1659245739708,0.70725733,23757.0,23752.0,0.626176]
[1659245739923,0.037,23756.0,23752.0,0.626176]
[1659245740386,0.304067,23755.0,23753.0,0.0293509]
[1659245740607,0.037,23756.0,23752.0,0.626176]
[1659245741034,0.44425733,23756.0,23752.0,0.205392]
[1659245741239,0.40725733,23756.0,23752.0,0.205392]
[1659245741470,0.41282356,23755.0,23752.0,0.205392]
[1659245741680,0.40725733,23755.0,23752.0,0.205392]
[1659245741895,0.304067,23754.0,23752.0,0.205392]
[1659245742144,0.40725733,23753.0,23752.0,0.205392]
[1659245742355,0.40725733,23753.0,23750.0,0.210445]
[1659245742572,0.40725733,23753.0,23751.0,0.0293509]
[1659245743015,0.40725733,23753.0,23752.0,0.05505572]
[1659245743991,0.45182356,23753.0,23752.0,0.04005572]
[1659245744411,0.44625733,23753.0,23752.0,0.04005572]
[1659245745062,0.40725733,23753.0,23752.0,0.04005572]
[1659245745909,0.44625733,23753.0,23752.0,0.04005572]
[1659245746566,0.45182356,23753.0,23752.0,0.04005572]
[1659245746988,0.44625733,23753.0,23752.0,0.04005572]
[1659245747205,0.40725733,23753.0,23752.0,0.04005572]
[1659245747650,0.41282356,23753.0,23752.0,0.04005572]
[1659245747852,0.48625733,23753.0,23752.0,0.04005572]
[1659245748056,0.079,23753.0,23752.0,0.04005572]
[1659245748267,0.48625733,23753.0,23752.0,0.04005572]
[1659245748496,0.79032433,23753.0,23752.0,0.04005572]
[1659245748707,0.48625733,23753.0,23752.0,0.04005572]
[1659245748979,0.49182356,23753.0,23752.0,0.04005572]
[1659245749171,0.48625733,23753.0,23752.0,0.04005572]
[1659245749377,0.48625733,23753.0,23752.0,0.03986409]
[1659245749601,0.40725733,23753.0,23752.0,0.03986409]
[1659245749850,0.48082356,23753.0,23752.0,0.03986409]
[1659245750793,0.47525733,23753.0,23752.0,0.03986409]
[1659245751256,0.40725733,23753.0,23752.0,0.03986409]
[1659245751946,0.48625733,23753.0,23752.0,0.03986409]
[1659245753262,0.40725733,23753.0,23752.0,0.03986409]
[1659245754195,0.48625733,23753.0,23752.0,0.03986409]
[1659245755323,0.79032433,23753.0,23752.0,0.03986409]
[1659245755520,0.71132433,23753.0,23752.0,0.03986409]
[1659245755731,0.40725733,23753.0,23752.0,0.03986409]
[1659245755953,0.48625733,23753.0,23752.0,0.03986409]
[1659245756158,0.49182356,23753.0,23752.0,0.03986409]
[1659245756859,0.48625733,23753.0,23752.0,0.03986409]
[1659245757098,0.079,23753.0,23752.0,0.03986409]
[1659245757305,0.3,23757.0,23752.0,0.03986409]
[1659245757561,0.71132433,23756.0,23751.0,0.2397889]
[1659245757769,0.40725733,23755.0,23751.0,0.2397889]
[1659245758002,0.40725733,23755.0,23754.0,0.03986409]
[1659245758213,0.71132433,23755.0,23754.0,0.03986409]
[1659245759091,0.71689056,23755.0,23754.0,0.03986409]
[1659245759988,0.76289056,23755.0,23754.0,0.03986409]
[1659245760681,0.75732433,23755.0,23754.0,0.03986409]
[1659245761808,0.71132433,23755.0,23754.0,0.03986409]
[1659245764074,0.71689056,23755.0,23754.0,0.03986409]
[1659245764698,0.77189056,23755.0,23754.0,0.03986409]
[1659245766654,0.71689056,23755.0,23754.0,0.03986409]
[1659245768934,0.71132433,23755.0,23754.0,0.03986409]
[1659245770377,0.76632433,23755.0,23754.0,0.03986409]
[1659245770786,0.82132433,23755.0,23754.0,0.03986409]
[1659245771706,0.71132433,23755.0,23754.0,0.03986409]
[1659245772359,0.76632433,23755.0,23754.0,0.03986409]
[1659245772575,0.77189056,23755.0,23754.0,0.03986409]
[1659245773557,0.76632433,23755.0,23754.0,0.03986409]
[1659245773774,0.71132433,23755.0,23754.0,0.03986409]
[1659245774488,0.76632433,23755.0,23754.0,0.03986409]
[1659245774866,0.76632433,23755.0,23754.0,0.06921499]
[1659245775079,0.76632433,23755.0,23754.0,0.03986409]
[1659245775751,0.71132433,23755.0,23754.0,0.03986409]
[1659245775974,0.71689056,23755.0,23754.0,0.03986409]
[1659245776209,1.01689056,23755.0,23754.0,0.03986409]
[1659245776439,0.77189056,23755.0,23754.0,0.03986409]
[1659245777803,0.71689056,23755.0,23754.0,0.03986409]
[1659245778486,0.79589056,23755.0,23754.0,0.03986409]
[1659245778708,1.71687856,23755.0,23754.0,0.03986409]
[1659245778931,2.57142234,23755.0,23754.0,0.03986409]
[1659245779159,2.57142234,23755.0,23754.0,4.09e-06]
[1659245779160,3.14329154,23755.0,23754.0,4.09e-06]
[1659245779388,3.14329154,23755.0,23742.0,0.29088399]
[1659245779389,0.8,23748.0,23742.0,0.29088399]
[1659245779638,0.91780633,23747.0,23740.0,0.5959]
[1659245780078,0.91780633,23747.0,23739.0,0.3725]
[1659245780079,0.40725733,23746.0,23739.0,0.3725]
[1659245780293,0.40725733,23746.0,23739.0,0.99030033]
[1659245780566,0.40725733,23746.0,23739.0,0.583043]
[1659245781885,0.40725733,23746.0,23739.0,0.3725]
[1659245782162,0.61781633,23746.0,23739.0,0.3725]
[1659245782372,0.40725733,23745.0,23739.0,0.3725]
[1659245784178,0.70725733,23745.0,23739.0,0.3725]
[1659245784433,0.40725733,23744.0,23739.0,0.3725]
[1659245784901,0.40725733,23744.0,23738.0,0.806445]
[1659245788837,0.45925733,23744.0,23738.0,0.806445]
[1659245789046,0.45925733,23744.0,23738.0,0.79405753]
[1659245789705,0.51125733,23744.0,23738.0,0.79405753]
[1659245790209,0.40725733,23744.0,23738.0,0.79405753]
[1659245790653,0.67341,23748.0,23739.0,0.304067]
[1659245790889,0.40725733,23745.0,23741.0,0.210515]
[1659245791111,0.40725733,23745.0,23742.0,0.0293509]
[1659245791338,0.40725733,23746.0,23742.0,0.0293509]
[1659245791557,0.00556623,23745.0,23743.0,0.210506]
[1659245793340,0.04456623,23745.0,23743.0,0.210506]
[1659245794753,0.00556623,23745.0,23743.0,0.210506]
[1659245795450,0.04556623,23745.0,23743.0,0.210506]
[1659245796162,0.04556623,23745.0,23740.0,0.73682]
[1659245796851,0.00556623,23745.0,23740.0,0.73682]
[1659245797546,0.00556623,23745.0,23741.0,0.304067]
[1659245797547,0.04,23745.0,23741.0,0.304067]
[1659245797793,0.03138529,23745.0,23742.0,0.3334179]
[1659245798016,0.03138529,23745.0,23742.0,0.3293509]
[1659245798251,0.03138529,23745.0,23743.0,0.935544]
[1659245798479,0.03138529,23745.0,23744.0,0.304067]
[1659245798724,0.3,23750.0,23744.0,1.37346093]
[1659245798955,0.3,23753.0,23745.0,1.64273833]
[1659245799166,0.3,23753.0,23746.0,0.40725733]
[1659245799167,0.70725733,23753.0,23746.0,0.40725733]
[1659245799384,0.04,23750.0,23746.0,0.40725733]
[1659245799601,0.04,23750.0,23747.0,0.3334179]
[1659245799828,0.04,23750.0,23747.0,0.0293509]
[1659245800818,0.70725733,23753.0,23747.0,0.0293509]
[1659245801453,0.75025733,23753.0,23747.0,0.0293509]
[1659245802175,0.304067,23752.0,23747.0,0.0293509]
[1659245802397,0.75025733,23753.0,23747.0,0.0293509]
[1659245802833,0.304067,23752.0,23747.0,0.0293509]
[1659245803037,0.70725733,23753.0,23747.0,0.0293509]
[1659245803267,0.304067,23752.0,23747.0,0.0293509]
[1659245803493,0.78525733,23753.0,23747.0,0.0293509]
[1659245803731,0.78525733,23753.0,23746.0,0.61772833]
[1659245803732,0.304067,23752.0,23746.0,0.61772833]
[1659245803977,0.78525733,23753.0,23746.0,0.61772833]
[1659245804214,0.304067,23752.0,23746.0,0.61772833]
[1659245804430,0.78525733,23753.0,23746.0,0.61772833]
[1659245804679,0.304067,23752.0,23746.0,0.61772833]
[1659245804919,0.70725733,23753.0,23746.0,0.61772833]
[1659245805396,0.079,23752.0,23746.0,0.61772833]
[1659245806069,0.48625733,23752.0,23746.0,0.210471]
[1659245806770,0.3,23751.0,23746.0,0.210471]
[1659245807468,0.48625733,23751.0,23746.0,0.210471]
[1659245808816,0.40725733,23751.0,23746.0,0.210471]
[1659245809489,0.48625733,23751.0,23746.0,0.210471]
[1659245809946,0.48625733,23751.0,23746.0,0.62834148]
[1659245810170,0.48625733,23751.0,23747.0,0.420911]
[1659245810425,0.00556623,23750.0,23747.0,0.420911]
[1659245810641,0.48625733,23751.0,23748.0,0.0293509]
[1659245810863,0.40725733,23751.0,23747.0,0.420911]
[1659245811075,0.40725733,23751.0,23747.0,0.631376]
[1659245811480,0.44725733,23751.0,23748.0,0.0293509]
[1659245811738,0.00556623,23750.0,23747.0,0.631376]
[1659245811959,0.44725733,23751.0,23747.0,0.631376]
[1659245812838,0.00556623,23750.0,23747.0,0.631376]
[1659245813084,0.40725733,23751.0,23748.0,0.0293509]
[1659245813298,0.40725733,23751.0,23747.0,0.210465]
[1659245813299,0.304067,23750.0,23747.0,0.210465]
[1659245813518,0.131314,23749.0,23747.0,0.210465]
[1659245813745,0.44725733,23751.0,23747.0,0.210465]
[1659245813967,0.00556623,23749.0,23745.0,0.783985]
[1659245814255,0.70725733,23750.0,23745.0,0.783985]
[1659245814479,0.40725733,23750.0,23745.0,0.783985]
[1659245815452,0.48625733,23750.0,23745.0,0.783985]
[1659245816850,0.40725733,23750.0,23745.0,0.783985]
[1659245817547,0.48625733,23750.0,23745.0,0.783985]
[1659245818778,0.70725733,23749.0,23743.0,0.2105]
[1659245819149,0.40725733,23748.0,23741.0,1.5512]
[1659245819552,0.40725733,23748.0,23741.0,1.37095733]
[1659245819758,0.40725733,23748.0,23741.0,1.58146933]
[1659245820177,0.40725733,23748.0,23741.0,1.63146933]
[1659245820378,0.40725733,23748.0,23741.0,1.58146933]
[1659245820588,0.40725733,23748.0,23742.0,0.510507]
[1659245820899,0.40725733,23748.0,23743.0,0.304067]
[1659245821060,0.40725733,23748.0,23742.0,0.510507]
[1659245821268,0.48625733,23748.0,23744.0,0.210493]
[1659245821594,0.00556623,23747.0,23744.0,0.210493]
[1659245821762,0.00550263,23747.0,23744.0,0.210493]
[1659245822798,0.00550263,23747.0,23743.0,0.304067]
[1659245823009,0.00550263,23747.0,23744.0,0.0293509]
[1659245823445,0.08350263,23747.0,23744.0,0.0293509]
[1659245823751,0.078,23747.0,23744.0,0.2398479]
[1659245823975,0.08332226,23747.0,23744.0,0.2398479]
[1659245824673,0.00532226,23747.0,23744.0,0.2398479]